Cogmind - Beta 16 @@@ ROGUE MODE // 2026.01.25 @ 00:45:41 Player: Rainy Days Result: Destroyed by G-34 Mercenary with Small Laser Performance ------------- Evolutions (0) 0 Regions Visited (1) 200 Robots Destroyed (26) 130 Value Destroyed (464) 464 Prototype IDs (0) 0 Alien Tech Used (0) 0 Bonus (0) 0 TOTAL SCORE: 794 Bonus ------- None Cogmind --------- Core Integrity 0/250 Matter 259/300 Energy 250/250 System Corruption 1% Temperature Warm (152) Movement Rolling (135) Ox3 Location -10/Materials Parts ------- > --- POWER (1) -------- Ion Engine > --- PROPULSION (2) --- Wheel Compact Wheel > --- UTILITY (2) ------ Huge Storage Unit Seismic Detector > --- WEAPON (2) ------- Medium Laser Light Assault Rifle > --- INVENTORY (25) --- Ion Engine Compact Wheel Armored Wheel Armored Wheel Flight Unit Flight Unit Improved Flight Unit Improved Flight Unit Improved Flight Unit Improved Flight Unit Improved Heat Sink Small Storage Unit Medium Storage Unit Sensor Array Signal Interpreter Targeting Computer EM Pulse Gun Small Laser Small Laser Small Laser Small Laser Light Assault Rifle Light Assault Rifle Light Assault Rifle Grenade Launcher Peak State ------------ > --- POWER ------------ Ion Engine > --- PROPULSION ------- Wheel Compact Wheel > --- UTILITY ---------- Huge Storage Unit Seismic Detector > --- WEAPON ----------- Medium Laser Light Assault Rifle > --- INVENTORY -------- Ion Engine Ion Engine Compact Wheel Armored Wheel Armored Wheel Flight Unit Flight Unit Improved Flight Unit Improved Flight Unit Improved Heat Sink Small Storage Unit Sensor Array Signal Interpreter Targeting Computer EM Pulse Gun Small Laser Small Laser Small Laser Small Laser Light Assault Rifle Light Assault Rifle Light Assault Rifle Grenade Launcher [Rating: 10] Favorites ----------- Power Ion Engine Engine Ion Engine Propulsion Compact Wheel Treads Light Treads Wheel Compact Wheel Utility Seismic Detector Device Seismic Detector Storage Small Storage Unit Weapon Light Assault Rifle Energy Gun Medium Laser Ballistic Gun Light Assault Rifle Launcher Grenade Launcher Build | -11 -10 ------- Run | Yrd Mat Slots Evolved . | . . Power . | . . Propulsion . | . . Utility . | . . Weapon . | . . Parts Attached 24 | 10 14 Power 3 | 1 2 Engine 3 | 1 2 Core . | . . Reactor . | . . Propulsion 8 | 4 4 Treads 2 | 2 . Leg . | . . Wheel 6 | 2 4 Hover . | . . Flight . | . . Utility 4 | 3 1 Device 2 | 2 . Storage 2 | 1 1 Processor . | . . Hackware . | . . Protection . | . . Artifact . | . . Weapon 9 | 2 7 Energy Gun 4 | 1 3 Energy Cannon . | . . Ballistic Gun 4 | 1 3 Ballistic Cannon . | . . Launcher 1 | . 1 Special Weapon . | . . Impact Weapon . | . . Slashing Weapon . | . . Piercing Weapon . | . . Special Melee Weapon . | . . Unidentified Prototypes . | . . Parts Lost 8 | . 8 Power 1 | . 1 Propulsion 4 | . 4 Utility . | . . Weapon 3 | . 3 Highest Loss Streak 5 | . 5 To Critical Strikes . | . . Average Backups 8 | 2 10 Power . | . 1 Propulsion 1 | . 1 Utility 2 | . 3 Weapon 3 | . 4 Tool/Special . | . . Unused Backups 19 | . 19 Power 2 | . 2 Propulsion 6 | . 6 Utility 5 | . 5 Weapon 6 | . 6 Tool/Special . | . . Average Slot Usage (%) 96 | . 96 Engine 13 | . 13 Wheel 24 | . 24 Device 14 | . 14 Storage 14 | . 14 Energy Gun 10 | . 10 Ballistic Gun 16 | . 16 Peak Build Rating 10 | 9 10 Average Rating 7 | 6 7 On Entrance 3 | . 7 Avg Prop Armor Cover (%) . | . . Naked Turns . | . . Heaviest Build 89 | 14 89 Greatest Support 40 | 40 32 Greatest Overweight (x) 3 | 1 3 Average Overweight (x) . | . . Largest Inventory Capacity 25 | 8 25 Average Capacity 12 | 7 13 Most Carried 25 | 8 25 Average Carried 8 | 2 10 Final Capacity 25 | 8 25 Final Carried 25 | 8 25 Class Distribution -------------------- 66% | Scavenger-Mutant 33% | Mutant Dominant Class ---------------- Scavenger-Mutant | -10/Materials Resources | -11 -10 ----------- Run | Yrd Mat Matter Collected 578 | 320 258 Remotely . | . . Salvage Created 811 | 124 687 Parts 45 | 10 35 Haulers Intercepted 1 | . 1 Recyclers Shooed 1 | . 1 Parts Field Recycled . | . . Retrieved Matter . | . . Parts Self-Destructed . | . . Prevented . | . . Parts Restored . | . . Kills | -11 -10 ------- Run | Yrd Mat Combat Hostiles Destroyed 12 | . 12 Melee 1 | . 1 Guns 11 | . 11 Classes Destroyed 8 | 3 5 Worker 5 | 2 3 Tunneler 4 | 3 1 Hauler 1 | . 1 Recycler 2 | 1 1 Operator 1 | . 1 Watcher 1 | . 1 Swarmer 3 | . 3 Grunt 9 | . 9 Best Kill Streak 6 | 3 6 Combat Bots Only 3 | . 3 Max Kills in Single Turn 1 | 1 1 Gunslinging . | . . Exploded . | . . Melee 1 | . 1 Uniques/NPCs Destroyed . | . . Combat | -11 -10 -------- Run | Yrd Mat Hostile Shots Fired 109 | . 109 Missed 22 | . 22 Hits 87 | . 87 Projectile 87 | . 87 Critical Strikes 1 | . 1 Damage Taken 1029 | . 1029 Core 258 | . 258 Absorbed by Shields . | . . Core Remaining (%) 100 | 100 . Volleys Fired 116 | 20 96 Largest 2 | 2 2 Hottest 100 | 70 100 Shots Fired 209 | 40 169 Gun 207 | 40 167 Cannon . | . . Launcher 2 | . 2 Special . | . . Kinetic 122 | 20 102 Thermal 85 | 20 65 Explosive 2 | . 2 Electromagnetic . | . . Robot Hit Streak 12 | 7 12 Robot Miss Streak 7 | 2 7 Penetration Max . | . . Secondary Targets 3 | . 3 Max Gunslinging Chain 1 | . 1 Shots Hit Robots 131 | 27 104 Core Hits 55 | 9 46 Critical Kills 1 | . 1 Critical Parts Destroyed . | . . Critical Strikes 9 | . 9 Burn 8 | . 8 Destroy 1 | . 1 Melee Attacks . | . . Impact . | . . Slashing . | . . Piercing . | . . Sneak Attacks . | . . Combat Hostiles . | . . Follow-up Attacks . | . . Damage Inflicted 1403 | 280 1123 Guns 1361 | 280 1081 Cannons . | . . Explosions . | . . Melee . | . . Ramming 42 | . 42 Kinetic 625 | 119 506 Thermal 736 | 161 575 Explosive . | . . Electromagnetic . | . . Impact . | . . Slashing . | . . Piercing . | . . Highest Corruption 1 | . 1 Average Corruption 1 | . 1 Corruption Purged . | . . Corruption Blocked . | . . Effects 4 | . 4 Message Errors 1 | . 1 Data Loss (major) 2 | . 2 Alerts 1 | . 1 Overload Shots . | . . Overflow Damage . | . . Projectiles . | . . Explosions . | . . Melee . | . . Knockbacks . | . . Impact . | . . Kinetic . | . . Secondary . | . . Self-Inflicted Damage 35 | . 35 Shots 1 | . 1 Rammed 13 | . 13 Targets Rammed 13 | . 13 Kicked . | . . Crushed . | . . Highest Temperature 532 | 170 532 Average Temperature 152 | 61 182 Received Heat Transfer 486 | . 486 Effects 10 | . 10 Shutdowns 2 | . 2 Energy Bleed 3 | . 3 Interference 4 | . 4 Matter Decay 1 | . 1 Siege Activations . | . . Martial Activations . | . . Shielding Activations . | . . Robots Disrupted . | . . Combat Hostiles . | . . Robots Corrupted . | . . Combat Hostiles . | . . Parts Fried . | . . Impact Corruptions . | . . Robots Melted . | . . Combat Hostiles . | . . Parts Melted 6 | 1 5 Heat Transferred 2775 | 481 2294 Parts Sabotaged . | . . Parts Stolen . | . . Parts Stripped . | . . Power Chain Reactions . | . . Alert | -11 -10 ------- Run | Yrd Mat Maximum Alert Level . | . . Low Security (%) 100 | 100 100 Level 1 . | . . Level 2 . | . . Level 3 . | . . Level 4 . | . . Level 5 . | . . High Security . | . . Max Security . | . . Peak Influence 93 | 10 93 Initial . | . . Average 24 | 1 29 Influence Increases 442 | 30 412 Destroy 0b10 Robot/C 240 | . 240 Destroy 0b10 Robot/NC 70 | 30 40 Destroy Leader 54 | . 54 Successful Hack 30 | . 30 Disable Machine 15 | . 15 Destroy Structure 18 | . 18 Lose Combat Pursuer 15 | . 15 Influence Decreases 422 | 30 392 Time Decay 347 | 30 317 Lost Part 75 | . 75 Squads Dispatched 1 | . 1 Investigation 1 | . 1 Extermination . | . . Reinforcement . | . . Assault . | . . Garrison . | . . Intercept . | . . Searches Triggered . | . . Construction Impeded . | . . Haulers Reinforced . | . . Active Scanning Responses . | . . Cargo Convoy Interrupts . | . . Stealth | -11 -10 --------- Run | Yrd Mat Distress Signals 2 | . 2 Communications Jammed . | . . Distress Signals . | . . Times Spotted 25 | . 25 Peak Tracking Total 3 | . 3 Tactical Retreats 1 | . 1 Traps | -11 -10 ------- Run | Yrd Mat Traps Triggered 2 | . 2 Indirectly . | . . Trap Hack Attempts . | . . Triggered . | . . Disarmed . | . . Reprogrammed . | . . Reused . | . . Traps Extracted . | . . Installed . | . . Triggered . | . . Machines | -11 -10 ---------- Run | Yrd Mat Machines Disabled 1 | . 1 Max in Single Turn 1 | . 1 Machines Repaired . | . . Machines Dismantled . | . . Machines Sabotaged . | . . Overloaded Fab Kills . | . . Hacking | -11 -10 --------- Run | Yrd Mat Machines Accessed 7 | . 7 Terminals 7 | . 7 Fabricators . | . . Repair Stations . | . . Recycling Units . | . . Scanalyzers . | . . Garrison Access . | . . Total Hacks 18 | . 18 Successful 7 | . 7 Failed 11 | . 11 Catastrophic 1 | . 1 Database Lockouts . | . . Manual 16 | . 16 Terminals 18 | . 18 Fabricators . | . . Repair Stations . | . . Recycling Units . | . . Scanalyzers . | . . Garrison Access . | . . Terminal Hacks 2 | . 2 Record 1 | . 1 Locate Traps 1 | . 1 Fabricator Hacks . | . . Repair Station Hacks . | . . Recycling Unit Hacks . | . . Scanalyzer . | . . Garrison Access Hacks . | . . Unauthorized Hacks 5 | . 5 Terminals 5 | . 5 Botnet 1 | . 1 Skim 4 | . 4 Fabricators . | . . Repair Stations . | . . Recycling Units . | . . Scanalyzers . | . . Garrison Access . | . . Data Cores Recovered . | . . Used . | . . Hacking Detections 6 | . 6 Full Trace Events 1 | . 1 Feedback Events . | . . Feedback Blocked . | . . Robot Schematics Acquired . | . . Robots Built . | . . Authchips . | . . Time . | . . Total Robot Build Rating . | . . Part Schematics Acquired . | . . Parts Built . | . . Authchips . | . . Time . | . . Total Part Build Rating . | . . Part Studies Acquired . | . . Parts Repaired . | . . Time . | . . Parts Recycled . | . . Recycled Matter . | . . Retrieved Matter . | . . Retrieved Components . | . . Parts Scanalyzed . | . . Part Schematics Acquired . | . . Parts Damaged . | . . Bothacking | -11 -10 ------------ Run | Yrd Mat Used RIF Installer . | . . Robots Hacked . | . . Non-combat . | . . Combat . | . . Robot Hacks Applied . | . . Relay Couplers Released . | . . Fabnet Peak Effective % . | . . Robots Rewired . | . . Allies Hacked . | . . Hacks Repelled . | . . Allies | -11 -10 -------- Run | Yrd Mat Total Allies . | . . Largest Group . | . . Highest-Rated Group . | . . Highest-Rated Ally . | . . Total Orders . | . . Ally Attacks . | . . Total Damage . | . . Kills . | . . Allies Corrupted . | . . Allies Melted . | . . Intel | -11 -10 ------- Run | Yrd Mat Active Infowar (turns) 823 | 105 718 Terrain 51 | 51 . Seismic 772 | 54 718 Robot Analysis Total . | . . Derelict Logs Recovered . | . . Drone Launches . | . . Drone Recoveries . | . . Exploration | -11 -10 ------------- Run | Yrd Mat Turns Passed 1138 | 208 930 Spaces Moved 632 | 98 534 Core 1 | 1 . Treads 57 | 57 . Legs . | . . Wheels 574 | 40 534 Hover . | . . Flight . | . . Fastest Speed 50 | 50 90 Average Speed 107 | 130 103 Slowest Speed 160 | 160 135 Overloaded Moves . | . . Propulsion Burnouts . | . . Robots Hopped . | . . Potential Cave-ins . | . . Cave-ins Triggered . | . . Exploration Rate (%) 42 | 4 80 Regions Visited 1 Branch Regions . Pre-discovered Areas . | . . Known Exits Taken . | . . Unknown Exits Taken 1 | 1 . Scrap Searched . | . . Spaces Dug . | . . Terrain Destroyed 16 | . 16 Melee . | . . Projectile . | . . AOE 16 | . 16 Terrain Rammed . | . . Walls Destroyed . | . . Machines Disabled . | . . Actions | -11 -10 --------- Run | Yrd Mat Total 900 | 138 762 Wait 70 | . 70 Move 631 | 97 534 Hop . | . . Pick Up 34 | 8 26 Fast Attach 13 | 10 3 Attach 6 | . 6 Detach . | . . Swap 8 | . 8 Drop 9 | 3 6 Fire 116 | 20 96 Melee . | . . Ram 13 | . 13 Kick . | . . Crush . | . . Escape Stasis . | . . Rewire . | . . Trap . | . . Miscellaneous . | . . Route ------- -11/Scrapyard -10/Materials (discovered 4 exits: [*Mat x3] / [*Min]) History --------- Turn | Location | Event 18 | -11/Scrapyard | Discovered new exit (range 16) 209 | -11/Scrapyard | Entered Materials 252 | -10/Materials | Discovered new exit (range 10) 313 | -10/Materials | Build established: Scavenger-Mutant 565 | -10/Materials | Core integrity fell below 50% 643 | -10/Materials | Lost 5 parts (1p1n3w) 673 | -10/Materials | Core integrity fell below 20% 699 | -10/Materials | Discovered new exit (range 15) 795 | -10/Materials | Discovered new exit (range 8) 828 | -10/Materials | Discovered new exit (range 10) 1009 | -10/Materials | Derelicts attacked the area 1139 | -10/Materials | Destroyed by G-34 Mercenary with Small Laser Last Messages --------------- analysis aimed at long-term improvements, eventually TF Nodes could be expanded to include more immediate detection and response efforts in support of nearby garrisons. >>Trojan(Skim) Trojan loaded successfully. Testing... Terminal linked with 3 systems. Please expand to 1 more system! 01076_ System corrupted: Substantial component data lost. 01092_ Acquired Arm. Wheel. 01098_ Acquired Prototype Flight Unit. 01116_ Dropped Ion Engine. 01119_ Acquired Med. Storage Unit. 01123_ G-34 Mercenary suffers critical hit (Burn). 01131_ G-34 Mercenary destroyed. 01131_ Switching to secondary target: G-34 Mercenary. Map ----- +----------------------------------------------------+ | | | | | | | | | | | | | | | | | | | | | | | | | | | | | | | ??????????????????????????????????????????????? | | ??????????????????????????????????????????????? | | ??????????????????????????????????????????????? | | ??????????????????????????????????????????????? | | ??????????????????????????????????????????????? | | ??????????????????????????????????????????????? | | ??????????????????????????????????????????????? | | ????????##########????????????????????????????? | | ????????# #????????????????????????????? | | ????????# ! #???######???????????????????? | | ????##### ! #??##!!!@##??????????????????? | | ????# # #??#! !#????#????##???????? | | ????# < # #??# *#??? # ???????? | | ????# !# #??#####g%### + ????????? | | ????#!!!/ #??##### #?????????????? | | ????#!!%# #??# #?????????????? | | ????# %!# * #??# ######?????????????? | | #####!!!##########??#== ^^#??????????????????? | | ^^ ########???# ###########????????? | | ^^ " #???#// # = #????????? | | #### "T [ #???#// # #????????? | | ???# #???##### # """ #????????? | | ???# #### #???????# # """ #????????? | | ???#######??# ######### + """ #????????? | | ????????????# # """ "T" #????????? | | ????????????# % # """ #????????? | | ??########### ############ #????????? | | ??# T ## #??????????###########????????? | | ??# ## ##????????????????????????????? | | #?# # #????????????????????????????? | | #?# # #????????????????????????????? | | #?# + T #????????????????????????????? | | #?# """ # ##########################???? | | #?# """ # #???? | | #?# """ #### ########## < #???? | +----------------------------------------------------+ Best States ------------- Heat Dissipation 25 Energy Generation 10 Energy Capacity 250 Matter Stores 300 Matter Capacity 300 Sight Range 16 Terrain Scan Range 16 Terrain Scan Density 10 Evasion (%) 42 Recoil Reduction 2 Item Schematics ----------------- None Robot Schematics ------------------ None Fabricated ------------ Nothing Repaired ---------- Nothing Studied --------- None Alien Tech Used ----------------- None Achievements -------------- None Challenges ------------ None Game ------ Seed WarlordMasterLoader Manual? 0 Play Time 00:15:28 Cumulative 191.2 hours Start 2026.01.25 @ 00:28:18 End 2026.01.25 @ 00:45:41 Sessions 1 Manual Loads 0 Difficulty Rogue Special Mode None Game No. 66 Rogue 66 Adventurer 0 Explorer 0 Win Type - Total 4 Types 2/0/1/0/0/1/0/0/0/0 Lore% 37 Gallery% 59 Achievement% 40 Wizard Run 0 Options --------- Layout 2 ASCII 0 Keyboard 0 Movement Mouse Keybinds 0 Fullscreen 1 Font 24/Smallcaps Map View 50x44 Zoom Use 0% Tactical HUD 1 Map Filters NONE Filters NONE Steam 1 RUN: 5d114e55-3540-4f71-82dc-81a2b5d6b817